[Event "Titled Tuesday Blitz November 29 Early 2022"]
[White "Hansen, Eric"]
[Black "Fernandez De La Vara, Arnaldo"]
[WhiteFideId "2606771"]
[BlackFideId "3518388"]
[WhiteElo "2568"]
[BlackElo "2387"]
[Result "1-0"]
[Round "09"]
[TimeControl "180+1"]
[Date "2022.11.29"]
[WhiteClock "0:02:16"]
[BlackClock "0:00:04"]

1. Nf3 {[%clk 0:03:00]}  c5 {[%clk 0:03:00]} 2. e4 {[%clk 0:03:00]}  e6 {[%clk 0:03:00]} 3. d4 {[%clk 0:03:00]}  cxd4 {[%clk 0:03:01]} 4. Nxd4 {[%clk 0:03:01]}  a6 {[%clk 0:03:01]} 5. Nc3 {[%clk 0:03:02]}  Qc7 {[%clk 0:03:01]} 6. Be3 {[%clk 0:03:02]}  Nf6 {[%clk 0:03:02]} 7. a3 {[%clk 0:03:01]}  d6 {[%clk 0:02:56]} 8. f4 {[%clk 0:03:02]}  Nbd7 {[%clk 0:02:56]} 9. Qf3 {[%clk 0:03:02]}  g6 {[%clk 0:02:51]} 10. g4 {[%clk 0:03:01]}  Bg7 {[%clk 0:02:47]} 11. g5 {[%clk 0:03:00]}  Nh5 {[%clk 0:02:47]} 12. O-O-O {[%clk 0:03:01]}  O-O {[%clk 0:02:40]} 13. Be2 {[%clk 0:02:59]}  Nb6 {[%clk 0:01:59]} 14. f5 {[%clk 0:02:52]}  exf5 {[%clk 0:01:43]} 15. exf5 {[%clk 0:02:51]}  Bxd4 {[%clk 0:01:12]} 16. Bxd4 {[%clk 0:02:51]}  Bxf5 {[%clk 0:01:13]} 17. Qf2 {[%clk 0:02:52]}  Nf4 {[%clk 0:00:38]} 18. Qxf4 {[%clk 0:02:50]}  Nd5 {[%clk 0:00:38]} 19. Qf3 {[%clk 0:02:44]}  Rfe8 {[%clk 0:00:33]} 20. Rhe1 {[%clk 0:02:38]}  Nxc3 {[%clk 0:00:23]} 21. Bxc3 {[%clk 0:02:37]}  Qe7 {[%clk 0:00:14]} 22. h4 {[%clk 0:02:37]}  Qe4 {[%clk 0:00:12]} 23. Qxe4 {[%clk 0:02:34]}  Rxe4 {[%clk 0:00:13]} 24. Bd3 {[%clk 0:02:31]}  Rxh4 {[%clk 0:00:12]} 25. Bxf5 {[%clk 0:02:32]}  gxf5 {[%clk 0:00:13]} 26. Rxd6 {[%clk 0:02:32]}  Rg4 {[%clk 0:00:11]} 27. Rh1 {[%clk 0:02:25]}  Re8 {[%clk 0:00:03]} 28. Rdh6 {[%clk 0:02:23]}  Re2 {[%clk 0:00:03]} 29. Rxh7 {[%clk 0:02:19]}  Kf8 {[%clk 0:00:04]} 30. Bf6 {[%clk 0:02:16]}  Ke8 {[%clk 0:00:04]} 31. Rd1 {[%clk 0:02:16]} 1-0


[Site "https://www.chess.com"]

[Event "Titled Tuesday Blitz November 29 Early 2022"]
[White "Hrabinska, Myroslava"]
[Black "Liu, Xiangyi"]
[WhiteFideId "14109190"]
[BlackFideId "8605718"]
[WhiteElo "2171"]
[BlackElo "2323"]
[Result "1-0"]
[Round "09"]
[TimeControl "180+1"]
[Date "2022.11.30"]
[WhiteClock "0:00:10"]
[BlackClock "0:00:20"]

1. e4 {[%clk 0:03:00]}  e6 {[%clk 0:02:56]} 2. Nf3 {[%clk 0:02:57]}  d5 {[%clk 0:02:56]} 3. e5 {[%clk 0:02:57]}  c5 {[%clk 0:02:55]} 4. b4 {[%clk 0:02:57]}  d4 {[%clk 0:02:48]} 5. Bb2 {[%clk 0:02:47]}  Nc6 {[%clk 0:02:47]} 6. b5 {[%clk 0:02:35]}  Nce7 {[%clk 0:02:46]} 7. c3 {[%clk 0:02:22]}  Nf5 {[%clk 0:02:32]} 8. cxd4 {[%clk 0:02:13]}  cxd4 {[%clk 0:02:27]} 9. Bd3 {[%clk 0:02:13]}  Ngh6 {[%clk 0:02:26]} 10. a4 {[%clk 0:02:01]}  Bc5 {[%clk 0:02:02]} 11. Na3 {[%clk 0:02:00]}  O-O {[%clk 0:02:01]} 12. Rc1 {[%clk 0:01:46]}  b6 {[%clk 0:02:01]} 13. Be4 {[%clk 0:01:30]}  Rb8 {[%clk 0:01:58]} 14. Qe2 {[%clk 0:01:21]}  Bb7 {[%clk 0:01:54]} 15. O-O {[%clk 0:01:13]}  Qe7 {[%clk 0:01:21]} 16. Nc4 {[%clk 0:00:54]}  Rfd8 {[%clk 0:01:19]} 17. d3 {[%clk 0:00:53]}  Nh4 {[%clk 0:01:06]} 18. Nxh4 {[%clk 0:00:26]}  Qxh4 {[%clk 0:01:05]} 19. g3 {[%clk 0:00:20]}  Qh3 {[%clk 0:00:58]} 20. Bxb7 {[%clk 0:00:19]}  Ng4 {[%clk 0:00:55]} 21. f3 {[%clk 0:00:18]}  Ne3 {[%clk 0:00:50]} 22. Nxe3 {[%clk 0:00:17]}  dxe3 {[%clk 0:00:50]} 23. Be4 {[%clk 0:00:16]}  Qh6 {[%clk 0:00:48]} 24. f4 {[%clk 0:00:16]}  f5 {[%clk 0:00:45]} 25. exf6 {[%clk 0:00:15]}  gxf6 {[%clk 0:00:45]} 26. d4 {[%clk 0:00:15]}  Bxd4 {[%clk 0:00:42]} 27. Bxd4 {[%clk 0:00:15]}  Rxd4 {[%clk 0:00:43]} 28. Qxe3 {[%clk 0:00:15]}  Rbd8 {[%clk 0:00:44]} 29. Rc7 {[%clk 0:00:14]}  f5 {[%clk 0:00:40]} 30. Bg2 {[%clk 0:00:13]}  Qf6 {[%clk 0:00:38]} 31. Qe5 {[%clk 0:00:13]}  Qxe5 {[%clk 0:00:37]} 32. fxe5 {[%clk 0:00:14]}  Rxa4 {[%clk 0:00:38]} 33. Re7 {[%clk 0:00:13]}  Rd2 {[%clk 0:00:38]} 34. Rxe6 {[%clk 0:00:12]}  Raa2 {[%clk 0:00:37]} 35. Bc6 {[%clk 0:00:12]}  Rxh2 {[%clk 0:00:25]} 36. Rxf5 {[%clk 0:00:11]}  Rh3 {[%clk 0:00:25]} 37. Rf3 {[%clk 0:00:10]}  Rc2 {[%clk 0:00:21]} 38. Re8+ {[%clk 0:00:09]}  Kg7 {[%clk 0:00:21]} 39. Re7+ {[%clk 0:00:10]}  Kg8 {[%clk 0:00:20]} 40. Bd5+ {[%clk 0:00:10]} 1-0


[Site "https://www.chess.com"]

[Event "Titled Tuesday Blitz November 29 Early 2022"]
[White "Ismayil, Malak"]
[Black "Makhmudov, Shukhrat"]
[WhiteFideId "13412604"]
[BlackFideId "14200775"]
[WhiteElo "1879"]
[BlackElo "2135"]
[Result "1-0"]
[Round "09"]
[TimeControl "180+1"]
[Date "2022.11.30"]
[WhiteClock "0:00:02"]
[BlackClock "0:00:09"]

1. e4 {[%clk 0:03:00]}  e5 {[%clk 0:02:58]} 2. Nf3 {[%clk 0:03:00]}  Nc6 {[%clk 0:02:56]} 3. Bc4 {[%clk 0:03:01]}  Nf6 {[%clk 0:02:54]} 4. d3 {[%clk 0:02:57]}  Bc5 {[%clk 0:02:53]} 5. Nc3 {[%clk 0:02:57]}  h6 {[%clk 0:02:44]} 6. h3 {[%clk 0:02:56]}  a6 {[%clk 0:02:42]} 7. a4 {[%clk 0:02:55]}  d6 {[%clk 0:02:39]} 8. O-O {[%clk 0:02:53]}  O-O {[%clk 0:02:39]} 9. Be3 {[%clk 0:02:54]}  Be6 {[%clk 0:02:35]} 10. Re1 {[%clk 0:02:35]}  Bxe3 {[%clk 0:02:33]} 11. fxe3 {[%clk 0:02:32]}  d5 {[%clk 0:02:29]} 12. exd5 {[%clk 0:02:31]}  Nxd5 {[%clk 0:02:29]} 13. Bxd5 {[%clk 0:02:28]}  Bxd5 {[%clk 0:02:29]} 14. e4 {[%clk 0:02:29]}  Be6 {[%clk 0:02:27]} 15. Qd2 {[%clk 0:02:29]}  Qd6 {[%clk 0:02:06]} 16. Qf2 {[%clk 0:02:27]}  Qb4 {[%clk 0:01:49]} 17. Rab1 {[%clk 0:02:26]}  Rad8 {[%clk 0:01:41]} 18. Qg3 {[%clk 0:02:25]}  Rfe8 {[%clk 0:01:14]} 19. Kh2 {[%clk 0:02:17]}  f6 {[%clk 0:01:09]} 20. Rf1 {[%clk 0:02:17]}  Nd4 {[%clk 0:00:57]} 21. Nh4 {[%clk 0:02:09]}  Nxc2 {[%clk 0:00:52]} 22. Rxf6 {[%clk 0:02:02]}  Qd4 {[%clk 0:00:38]} 23. Rd1 {[%clk 0:01:55]}  Ne3 {[%clk 0:00:28]} 24. Rd2 {[%clk 0:01:48]}  Rf8 {[%clk 0:00:22]} 25. Rxf8+ {[%clk 0:01:34]}  Rxf8 {[%clk 0:00:22]} 26. Qe1 {[%clk 0:00:42]}  Nf1+ {[%clk 0:00:22]} 27. Kh1 {[%clk 0:00:43]}  Nxd2 {[%clk 0:00:21]} 28. Qxd2 {[%clk 0:00:44]}  Rf1+ {[%clk 0:00:21]} 29. Kh2 {[%clk 0:00:43]}  Qg1+ {[%clk 0:00:21]} 30. Kg3 {[%clk 0:00:44]}  Rf4 {[%clk 0:00:19]} 31. Nf3 {[%clk 0:00:40]}  Qa1 {[%clk 0:00:18]} 32. Nxe5 {[%clk 0:00:37]}  Rf1 {[%clk 0:00:15]} 33. Nf3 {[%clk 0:00:31]}  Bf7 {[%clk 0:00:09]} 34. Ne2 {[%clk 0:00:19]}  c6 {[%clk 0:00:09]} 35. Nf4 {[%clk 0:00:17]}  g5 {[%clk 0:00:08]} 36. Ne2 {[%clk 0:00:16]}  Bh5 {[%clk 0:00:08]} 37. Ned4 {[%clk 0:00:17]}  c5 {[%clk 0:00:08]} 38. Nf5 {[%clk 0:00:15]}  Bxf3 {[%clk 0:00:08]} 39. gxf3 {[%clk 0:00:09]}  Rg1+ {[%clk 0:00:07]} 40. Kf2 {[%clk 0:00:10]}  Qf1+ {[%clk 0:00:07]} 41. Ke3 {[%clk 0:00:10]}  Qe1+ {[%clk 0:00:07]} 42. Qxe1 {[%clk 0:00:10]}  Rxe1+ {[%clk 0:00:08]} 43. Kd2 {[%clk 0:00:09]}  Rb1 {[%clk 0:00:08]} 44. Kc2 {[%clk 0:00:08]}  Rf1 {[%clk 0:00:07]} 45. Nxh6+ {[%clk 0:00:08]}  Kh7 {[%clk 0:00:07]} 46. Nf7 {[%clk 0:00:06]}  Kg6 {[%clk 0:00:06]} 47. Ne5+ {[%clk 0:00:05]}  Kg7 {[%clk 0:00:05]} 48. Kc3 {[%clk 0:00:03]}  b5 {[%clk 0:00:06]} 49. axb5 {[%clk 0:00:03]}  axb5 {[%clk 0:00:06]} 50. b3 {[%clk 0:00:03]}  Rc1+ {[%clk 0:00:06]} 51. Kd2 {[%clk 0:00:03]}  Rh1 {[%clk 0:00:07]} 52. Ke3 {[%clk 0:00:02]}  Rxh3 {[%clk 0:00:07]} 53. d4 {[%clk 0:00:03]}  cxd4+ {[%clk 0:00:06]} 54. Kxd4 {[%clk 0:00:04]}  Kf6 {[%clk 0:00:07]} 55. Nd7+ {[%clk 0:00:03]}  Ke7 {[%clk 0:00:07]} 56. Ne5 {[%clk 0:00:03]}  Ke6 {[%clk 0:00:06]} 57. b4 {[%clk 0:00:03]}  Rh1 {[%clk 0:00:05]} 58. Nd3 {[%clk 0:00:02]}  Rd1 {[%clk 0:00:05]} 59. Ke3 {[%clk 0:00:03]}  Rb1 {[%clk 0:00:04]} 60. Nc5+ {[%clk 0:00:02]}  Ke5 {[%clk 0:00:04]} 61. Nd3+ {[%clk 0:00:03]}  Kd6 {[%clk 0:00:05]} 62. Kd4 {[%clk 0:00:03]}  Rd1 {[%clk 0:00:04]} 63. Ke3 {[%clk 0:00:03]}  Rb1 {[%clk 0:00:04]} 64. Kd2 {[%clk 0:00:02]}  Rb3 {[%clk 0:00:03]} 65. Kc2 {[%clk 0:00:02]}  Ra3 {[%clk 0:00:04]} 66. Kd2 {[%clk 0:00:02]}  Ra2+ {[%clk 0:00:04]} 67. Ke3 {[%clk 0:00:02]}  Ra3 {[%clk 0:00:05]} 68. Kd4 {[%clk 0:00:02]}  Rb3 {[%clk 0:00:05]} 69. e5+ {[%clk 0:00:02]}  Kc7 {[%clk 0:00:04]} 70. Ke4 {[%clk 0:00:01]}  Kc6 {[%clk 0:00:03]} 71. e6 {[%clk 0:00:01]}  Rb1 {[%clk 0:00:03]} 72. Kf5 {[%clk 0:00:01]}  Kd6 {[%clk 0:00:04]} 73. Ne5 {[%clk 0:00:01]}  Re1 {[%clk 0:00:03]} 74. Nf7+ {[%clk 0:00:02]}  Ke7 {[%clk 0:00:04]} 75. Nxg5 {[%clk 0:00:03]}  Re3 {[%clk 0:00:03]} 76. f4 {[%clk 0:00:03]}  Rb3 {[%clk 0:00:03]} 77. Ne4 {[%clk 0:00:02]}  Rxb4 {[%clk 0:00:03]} 78. Nf2 {[%clk 0:00:01]}  Rb2 {[%clk 0:00:02]} 79. Ng4 {[%clk 0:00:02]}  Rb4 {[%clk 0:00:02]} 80. Ne5 {[%clk 0:00:02]}  Rd4 {[%clk 0:00:02]} 81. Nc6+ {[%clk 0:00:02]}  Kd6 {[%clk 0:00:03]} 82. Nxd4 {[%clk 0:00:03]}  b4 {[%clk 0:00:03]} 83. Nb3 {[%clk 0:00:02]}  Ke7 {[%clk 0:00:04]} 84. Ke5 {[%clk 0:00:03]}  Ke8 {[%clk 0:00:04]} 85. f5 {[%clk 0:00:03]}  Kf8 {[%clk 0:00:05]} 86. f6 {[%clk 0:00:04]}  Ke8 {[%clk 0:00:05]} 87. Kd6 {[%clk 0:00:04]}  Kd8 {[%clk 0:00:06]} 88. f7 {[%clk 0:00:03]}  Kc8 {[%clk 0:00:06]} 89. f8=Q+ {[%clk 0:00:03]}  Kb7 {[%clk 0:00:07]} 90. Qe7+ {[%clk 0:00:04]}  Kb6 {[%clk 0:00:07]} 91. Qc7+ {[%clk 0:00:04]}  Ka6 {[%clk 0:00:08]} 92. Qa5+ {[%clk 0:00:04]}  Kb7 {[%clk 0:00:08]} 93. Qxb4+ {[%clk 0:00:04]}  Kc8 {[%clk 0:00:08]} 94. Qc5+ {[%clk 0:00:04]}  Kb8 {[%clk 0:00:09]} 95. Qc7+ {[%clk 0:00:04]}  Ka8 {[%clk 0:00:09]} 96. Qd7 {[%clk 0:00:05]}  Kb8 {[%clk 0:00:09]} 97. Nc5 {[%clk 0:00:05]}  Ka8 {[%clk 0:00:09]} 98. e7 {[%clk 0:00:05]}  Kb8 {[%clk 0:00:09]} 99. Kc6 {[%clk 0:00:04]}  Ka8 {[%clk 0:00:09]} 100. Qb7# {[%clk 0:00:02]} 1-0


[Site "https://www.chess.com"]

[Event "Titled Tuesday Blitz November 29 Early 2022"]
[White "Ivic, Velimir"]
[Black "Abasov, Nijat"]
[WhiteFideId "950122"]
[BlackFideId "13402960"]
[WhiteElo "2625"]
[BlackElo "2546"]
[Result "0-1"]
[Round "09"]
[TimeControl "180+1"]
[Date "2022.11.29"]
[WhiteClock "0:00:05"]
[BlackClock "0:00:16"]

1. d4 {[%clk 0:02:55]}  Nf6 {[%clk 0:02:59]} 2. c4 {[%clk 0:02:55]}  e6 {[%clk 0:02:59]} 3. Nf3 {[%clk 0:02:56]}  b6 {[%clk 0:02:59]} 4. g3 {[%clk 0:02:55]}  Bb7 {[%clk 0:02:59]} 5. Bg2 {[%clk 0:02:55]}  Be7 {[%clk 0:03:00]} 6. O-O {[%clk 0:02:55]}  O-O {[%clk 0:03:01]} 7. Re1 {[%clk 0:02:55]}  Ne4 {[%clk 0:03:01]} 8. Nfd2 {[%clk 0:02:50]}  d5 {[%clk 0:03:00]} 9. cxd5 {[%clk 0:02:51]}  exd5 {[%clk 0:03:01]} 10. Nxe4 {[%clk 0:02:52]}  dxe4 {[%clk 0:03:02]} 11. Nc3 {[%clk 0:02:53]}  f5 {[%clk 0:03:02]} 12. Bf4 {[%clk 0:02:52]}  a6 {[%clk 0:02:57]} 13. Rc1 {[%clk 0:02:46]}  Bd6 {[%clk 0:02:56]} 14. Qd2 {[%clk 0:02:38]}  h6 {[%clk 0:02:49]} 15. Red1 {[%clk 0:02:37]}  Nc6 {[%clk 0:02:45]} 16. Nd5 {[%clk 0:02:21]}  Bxf4 {[%clk 0:02:31]} 17. Nxf4 {[%clk 0:02:21]}  Qd6 {[%clk 0:02:31]} 18. Qc3 {[%clk 0:02:20]}  Rf7 {[%clk 0:02:23]} 19. a3 {[%clk 0:01:36]}  Rc8 {[%clk 0:02:11]} 20. e3 {[%clk 0:01:22]}  Ne7 {[%clk 0:02:06]} 21. Bf1 {[%clk 0:01:21]}  Kh7 {[%clk 0:01:51]} 22. Bc4 {[%clk 0:01:20]}  Rf6 {[%clk 0:01:52]} 23. h4 {[%clk 0:01:08]}  g5 {[%clk 0:01:45]} 24. hxg5 {[%clk 0:00:30]}  hxg5 {[%clk 0:01:44]} 25. Nh3 {[%clk 0:00:31]}  Kg6 {[%clk 0:01:33]} 26. Kg2 {[%clk 0:00:30]}  Nd5 {[%clk 0:01:26]} 27. Qc2 {[%clk 0:00:30]}  Rh8 {[%clk 0:00:42]} 28. Bxd5 {[%clk 0:00:24]}  Bxd5 {[%clk 0:00:43]} 29. Qxc7 {[%clk 0:00:25]}  Qe6 {[%clk 0:00:41]} 30. Rh1 {[%clk 0:00:22]}  Rff8 {[%clk 0:00:37]} 31. Qa7 {[%clk 0:00:11]}  f4 {[%clk 0:00:34]} 32. gxf4 {[%clk 0:00:03]}  Qg4+ {[%clk 0:00:33]} 33. Kf1 {[%clk 0:00:03]}  Rxh3 {[%clk 0:00:26]} 34. Rg1 {[%clk 0:00:04]}  Bc4+ {[%clk 0:00:24]} 35. Rxc4 {[%clk 0:00:04]}  Qd1+ {[%clk 0:00:23]} 36. Kg2 {[%clk 0:00:05]}  Qf3+ {[%clk 0:00:20]} 37. Kf1 {[%clk 0:00:05]}  Qd1+ {[%clk 0:00:17]} 38. Kg2 {[%clk 0:00:06]}  Rg3+ {[%clk 0:00:17]} 39. Kxg3 {[%clk 0:00:05]}  Qxg1+ {[%clk 0:00:16]} 0-1


[Site "https://www.chess.com"]

[Event "Titled Tuesday Blitz November 29 Early 2022"]
[White "Jakubowski, Krzysztof"]
[Black "Ilkhomi, Jaloliddin"]
[WhiteFideId "1112848"]
[BlackFideId "14700948"]
[WhiteElo "2373"]
[BlackElo "2045"]
[Result "1-0"]
[Round "09"]
[TimeControl "180+1"]
[Date "2022.11.30"]
[WhiteClock "0:00:45"]
[BlackClock "0:00:01"]

1. e4 {[%clk 0:03:00]}  e6 {[%clk 0:02:58]} 2. d4 {[%clk 0:02:59]}  d5 {[%clk 0:02:58]} 3. Nc3 {[%clk 0:02:59]}  Bb4 {[%clk 0:02:58]} 4. e5 {[%clk 0:02:58]}  c5 {[%clk 0:02:58]} 5. a3 {[%clk 0:02:59]}  Bxc3+ {[%clk 0:02:58]} 6. bxc3 {[%clk 0:02:59]}  Qa5 {[%clk 0:02:59]} 7. Bd2 {[%clk 0:02:59]}  Qa4 {[%clk 0:03:00]} 8. Qb1 {[%clk 0:02:58]}  c4 {[%clk 0:03:00]} 9. Nf3 {[%clk 0:02:53]}  Nc6 {[%clk 0:02:58]} 10. Be2 {[%clk 0:02:49]}  Nge7 {[%clk 0:02:58]} 11. h4 {[%clk 0:02:48]}  Bd7 {[%clk 0:02:58]} 12. h5 {[%clk 0:02:47]}  h6 {[%clk 0:02:55]} 13. O-O {[%clk 0:02:47]}  O-O-O {[%clk 0:02:55]} 14. Re1 {[%clk 0:02:46]}  Rdf8 {[%clk 0:02:55]} 15. Qc1 {[%clk 0:02:42]}  b6 {[%clk 0:02:30]} 16. Bf4 {[%clk 0:02:40]}  Kb7 {[%clk 0:02:29]} 17. Nh2 {[%clk 0:02:38]}  f5 {[%clk 0:02:14]} 18. g3 {[%clk 0:02:31]}  Rf7 {[%clk 0:02:05]} 19. Kg2 {[%clk 0:02:22]}  g5 {[%clk 0:02:04]} 20. hxg6 {[%clk 0:02:21]}  Nxg6 {[%clk 0:02:04]} 21. Bh5 {[%clk 0:02:17]}  Nxf4+ {[%clk 0:02:01]} 22. Qxf4 {[%clk 0:02:18]}  Rg7 {[%clk 0:02:01]} 23. Qd2 {[%clk 0:02:11]}  Ne7 {[%clk 0:01:52]} 24. Rh1 {[%clk 0:02:05]}  f4 {[%clk 0:01:38]} 25. g4 {[%clk 0:02:01]}  Rd8 {[%clk 0:01:25]} 26. Nf3 {[%clk 0:01:53]}  Rf8 {[%clk 0:01:17]} 27. Nh4 {[%clk 0:01:52]}  Be8 {[%clk 0:01:16]} 28. Bxe8 {[%clk 0:01:50]}  f3+ {[%clk 0:01:08]} 29. Kg3 {[%clk 0:01:36]}  Qxe8 {[%clk 0:01:01]} 30. Qxh6 {[%clk 0:01:35]}  Rh8 {[%clk 0:00:56]} 31. Qxe6 {[%clk 0:01:32]}  Rg5 {[%clk 0:00:36]} 32. Nxf3 {[%clk 0:01:09]}  Nf5+ {[%clk 0:00:19]} 33. Qxf5 {[%clk 0:01:05]}  Rxf5 {[%clk 0:00:20]} 34. gxf5 {[%clk 0:01:02]}  Qg8+ {[%clk 0:00:15]} 35. Kf4 {[%clk 0:01:00]}  Kc7 {[%clk 0:00:12]} 36. Rag1 {[%clk 0:00:58]}  Qf8 {[%clk 0:00:12]} 37. f6 {[%clk 0:00:56]}  Kd8 {[%clk 0:00:04]} 38. Ng5 {[%clk 0:00:55]}  Rxh1 {[%clk 0:00:01]} 39. Rxh1 {[%clk 0:00:45]}  Qg8 {[%clk 0:00:01]} 40. Rh8 {[%clk 0:00:45]}  Qxh8 {[%clk 0:00:01]} 41. Nf7+ {[%clk 0:00:45]} 1-0


[Site "https://www.chess.com"]

[Event "Titled Tuesday Blitz November 29 Early 2022"]
[White "Janaszak, Dawid"]
[Black "Wagner, Dennis"]
[WhiteFideId "1119206"]
[BlackFideId "24650684"]
[WhiteElo "2226"]
[BlackElo "2470"]
[Result "0-1"]
[Round "09"]
[TimeControl "180+1"]
[Date "2022.11.30"]
[WhiteClock "0:00:11"]
[BlackClock "0:00:04"]

1. e4 {[%clk 0:03:00]}  c5 {[%clk 0:02:59]} 2. Nc3 {[%clk 0:02:59]}  Nc6 {[%clk 0:02:59]} 3. Bb5 {[%clk 0:02:58]}  g6 {[%clk 0:02:56]} 4. Bxc6 {[%clk 0:02:58]}  dxc6 {[%clk 0:02:53]} 5. d3 {[%clk 0:02:58]}  Bg7 {[%clk 0:02:53]} 6. Be3 {[%clk 0:02:58]}  b6 {[%clk 0:02:50]} 7. Qd2 {[%clk 0:02:57]}  Qc7 {[%clk 0:02:43]} 8. Nge2 {[%clk 0:02:54]}  e5 {[%clk 0:02:23]} 9. O-O {[%clk 0:02:53]}  Nf6 {[%clk 0:02:06]} 10. Bh6 {[%clk 0:02:51]}  O-O {[%clk 0:02:06]} 11. Bxg7 {[%clk 0:02:50]}  Kxg7 {[%clk 0:02:07]} 12. f4 {[%clk 0:02:50]}  exf4 {[%clk 0:02:04]} 13. Nxf4 {[%clk 0:02:38]}  Qe5 {[%clk 0:02:04]} 14. Kh1 {[%clk 0:02:26]}  Bd7 {[%clk 0:01:59]} 15. Rae1 {[%clk 0:02:23]}  Rae8 {[%clk 0:01:57]} 16. b3 {[%clk 0:02:18]}  h5 {[%clk 0:01:38]} 17. Nd1 {[%clk 0:02:11]}  h4 {[%clk 0:01:29]} 18. Qc3 {[%clk 0:02:07]}  g5 {[%clk 0:01:22]} 19. Qxe5 {[%clk 0:02:02]}  Rxe5 {[%clk 0:01:23]} 20. Ne2 {[%clk 0:02:00]}  Ng4 {[%clk 0:01:15]} 21. h3 {[%clk 0:01:56]}  Nh6 {[%clk 0:01:15]} 22. Ne3 {[%clk 0:01:50]}  f5 {[%clk 0:01:12]} 23. Nc4 {[%clk 0:01:35]}  Re7 {[%clk 0:01:12]} 24. Nc3 {[%clk 0:01:21]}  f4 {[%clk 0:01:11]} 25. Nd2 {[%clk 0:00:59]}  Nf7 {[%clk 0:01:04]} 26. Nf3 {[%clk 0:00:58]}  Kg6 {[%clk 0:01:01]} 27. Rf2 {[%clk 0:00:51]}  Rfe8 {[%clk 0:01:01]} 28. Ref1 {[%clk 0:00:50]}  Nh6 {[%clk 0:00:57]} 29. a4 {[%clk 0:00:49]}  a5 {[%clk 0:00:56]} 30. Nd2 {[%clk 0:00:46]}  Be6 {[%clk 0:00:53]} 31. Nc4 {[%clk 0:00:45]}  Bxc4 {[%clk 0:00:49]} 32. bxc4 {[%clk 0:00:46]}  Nf7 {[%clk 0:00:48]} 33. Rb1 {[%clk 0:00:45]}  Rb8 {[%clk 0:00:48]} 34. Kg1 {[%clk 0:00:43]}  Ne5 {[%clk 0:00:47]} 35. Kf1 {[%clk 0:00:37]}  Reb7 {[%clk 0:00:47]} 36. Ke2 {[%clk 0:00:37]}  Kf6 {[%clk 0:00:47]} 37. Kd2 {[%clk 0:00:36]}  Nd7 {[%clk 0:00:45]} 38. Rff1 {[%clk 0:00:36]}  Ke5 {[%clk 0:00:45]} 39. Rf2 {[%clk 0:00:36]}  Nf6 {[%clk 0:00:43]} 40. Rbf1 {[%clk 0:00:35]}  Nh5 {[%clk 0:00:43]} 41. Rb1 {[%clk 0:00:34]}  Ng3 {[%clk 0:00:43]} 42. Ne2 {[%clk 0:00:31]}  b5 {[%clk 0:00:40]} 43. cxb5 {[%clk 0:00:28]}  cxb5 {[%clk 0:00:41]} 44. axb5 {[%clk 0:00:25]}  Rxb5 {[%clk 0:00:42]} 45. Ra1 {[%clk 0:00:21]}  Ra8 {[%clk 0:00:34]} 46. Nc3 {[%clk 0:00:21]}  Rb4 {[%clk 0:00:33]} 47. Nd5 {[%clk 0:00:20]}  Rb7 {[%clk 0:00:32]} 48. Ra4 {[%clk 0:00:19]}  Rb1 {[%clk 0:00:28]} 49. Rc4 {[%clk 0:00:14]}  a4 {[%clk 0:00:26]} 50. Rxc5 {[%clk 0:00:14]}  Kd6 {[%clk 0:00:25]} 51. Rc4 {[%clk 0:00:13]}  a3 {[%clk 0:00:24]} 52. Nc3 {[%clk 0:00:13]}  a2 {[%clk 0:00:23]} 53. Rd4+ {[%clk 0:00:13]}  Ke6 {[%clk 0:00:22]} 54. Nxa2 {[%clk 0:00:13]}  Rxa2 {[%clk 0:00:23]} 55. Rc4 {[%clk 0:00:13]}  Nf1+ {[%clk 0:00:12]} 56. Kc3 {[%clk 0:00:10]}  Ne3 {[%clk 0:00:07]} 57. Rc6+ {[%clk 0:00:10]}  Kd7 {[%clk 0:00:07]} 58. Rg6 {[%clk 0:00:10]}  Nd1+ {[%clk 0:00:08]} 59. Kd4 {[%clk 0:00:10]}  Ra4+ {[%clk 0:00:06]} 60. Ke5 {[%clk 0:00:10]}  Ra5+ {[%clk 0:00:05]} 61. Kd4 {[%clk 0:00:09]}  Rb4+ {[%clk 0:00:05]} 62. c4 {[%clk 0:00:10]}  Nxf2 {[%clk 0:00:03]} 63. Rg7+ {[%clk 0:00:10]}  Ke6 {[%clk 0:00:03]} 64. Rg6+ {[%clk 0:00:11]}  Kf7 {[%clk 0:00:04]} 65. Rh6 {[%clk 0:00:11]}  Rb3 {[%clk 0:00:04]} 66. e5 {[%clk 0:00:11]}  Rxd3# {[%clk 0:00:04]} 0-1


[Site "https://www.chess.com"]

[Event "Titled Tuesday Blitz November 29 Early 2022"]
[White "Jobava, Baadur"]
[Black "Bortnyk, Olexandr"]
[WhiteFideId "13601520"]
[BlackFideId "14120828"]
[WhiteElo "3054"]
[BlackElo "3047"]
[Result "0-1"]
[Round "09"]
[TimeControl "180+1"]
[Date "2022.11.29"]
[WhiteClock "0:00:02"]
[BlackClock "0:00:02"]

1. e4 {[%clk 0:02:42]}  Nf6 {[%clk 0:02:57]} 2. Nc3 {[%clk 0:02:39]}  d5 {[%clk 0:02:53]} 3. e5 {[%clk 0:02:38]}  Nfd7 {[%clk 0:02:53]} 4. f4 {[%clk 0:02:37]}  d4 {[%clk 0:02:54]} 5. Ne4 {[%clk 0:02:36]}  f5 {[%clk 0:02:54]} 6. Ng5 {[%clk 0:02:29]}  Nb6 {[%clk 0:02:37]} 7. a4 {[%clk 0:01:43]}  a5 {[%clk 0:02:33]} 8. Ra3 {[%clk 0:01:23]}  g6 {[%clk 0:02:18]} 9. Rh3 {[%clk 0:01:22]}  h6 {[%clk 0:02:06]} 10. b3 {[%clk 0:01:20]}  e6 {[%clk 0:01:39]} 11. Bb2 {[%clk 0:01:10]}  c5 {[%clk 0:01:36]} 12. Bb5+ {[%clk 0:01:07]}  Nc6 {[%clk 0:01:34]} 13. Ne2 {[%clk 0:01:04]}  Bd7 {[%clk 0:01:20]} 14. Nc1 {[%clk 0:00:57]}  Bg7 {[%clk 0:01:09]} 15. Nf3 {[%clk 0:00:56]}  Qe7 {[%clk 0:01:02]} 16. Nd3 {[%clk 0:00:56]}  Nb4 {[%clk 0:00:55]} 17. Bxd7+ {[%clk 0:00:55]}  Kxd7 {[%clk 0:00:55]} 18. Ba3 {[%clk 0:00:41]}  Nxd3+ {[%clk 0:00:44]} 19. cxd3 {[%clk 0:00:42]}  Nd5 {[%clk 0:00:44]} 20. Nxd4 {[%clk 0:00:36]}  Nxf4 {[%clk 0:00:44]} 21. Qf3 {[%clk 0:00:36]}  Nd5 {[%clk 0:00:37]} 22. Nb5 {[%clk 0:00:26]}  Bxe5 {[%clk 0:00:30]} 23. d4 {[%clk 0:00:26]}  Bd6 {[%clk 0:00:31]} 24. O-O {[%clk 0:00:23]}  Rac8 {[%clk 0:00:27]} 25. Qe2 {[%clk 0:00:19]}  Ke8 {[%clk 0:00:19]} 26. Re1 {[%clk 0:00:11]}  Kf7 {[%clk 0:00:16]} 27. Qf2 {[%clk 0:00:08]}  Nf6 {[%clk 0:00:12]} 28. Rf3 {[%clk 0:00:06]}  Bxh2+ {[%clk 0:00:11]} 29. Kf1 {[%clk 0:00:06]}  Ng4 {[%clk 0:00:10]} 30. Qe2 {[%clk 0:00:05]}  Bd6 {[%clk 0:00:06]} 31. Kg1 {[%clk 0:00:05]}  Rhd8 {[%clk 0:00:05]} 32. Qc4 {[%clk 0:00:05]}  Rc6 {[%clk 0:00:04]} 33. d5 {[%clk 0:00:05]}  Qh4 {[%clk 0:00:02]} 34. g3 {[%clk 0:00:03]}  Qh2+ {[%clk 0:00:02]} 35. Kf1 {[%clk 0:00:04]}  Bxg3 {[%clk 0:00:01]} 36. dxe6+ {[%clk 0:00:04]}  Kg7 {[%clk 0:00:02]} 37. Qc3+ {[%clk 0:00:02]}  Kh7 {[%clk 0:00:01]} 38. e7 {[%clk 0:00:02]}  Re8 {[%clk 0:00:02]} 0-1


[Site "https://www.chess.com"]